Cogmind - Beta 12 @@@ ROGUE MODE // 2023.03.08 @ 11:46:19 Player: Momo Result: Self-destructed Performance ------------- Evolutions (6) 3000 Regions Visited (19) 3800 Robots Destroyed (198) 990 Value Destroyed (8018) 8018 Prototype IDs (38) 760 Alien Tech Used (0) 0 Bonus (1355) 1355 TOTAL SCORE: 17923 Bonus ------- High Alert Combat Kills 784 Follower Combat Kills 1036 Aligned with FarCom 300 Met Warlord at Base 500 MAIN.C Attacked Warlord 500 Friendly Fire -1765 Cogmind --------- Core Integrity 536/1150 Matter 175/300 Energy 100/100 System Corruption 13% Temperature Cool (0) Movement Treading (170) Location -4/Factory Parts ------- > --- POWER (3) -------- (None) > --- PROPULSION (5) --- Treaded Siege-Centrium Exoskeleton > --- UTILITY (6) ------ High-capacity Storage Unit > --- WEAPON (5) ------- (None) > --- INVENTORY (20) --- Experimental Heat Sink Experimental Coolant Injector Large Storage Unit Matter Compressor (250) Gravity Neutralizer Spectral Analyzer Long-range Sensor Array Seismic Detector Improved Target Analyzer Precision Energy Filter Improved Particle Charger Advanced Transmission Jammer Advanced Transmission Jammer Improved Force Field Advanced Force Field Advanced Remote Shield Ghost Barrier Peak State ------------ > --- POWER ------------ Antimatter-Chain Reactor > --- PROPULSION ------- Treaded Siege-Centrium Exoskeleton > --- UTILITY ---------- Armored Scrap Engine Experimental Coolant Injector High-capacity Storage Unit Advanced Signal Interpreter Advanced Transmission Jammer > --- WEAPON ----------- Long-range Missile Launcher Burst Entropic Mass Construct/C Hpw. Thermic Construct/G > --- INVENTORY -------- Experimental Heat Sink Improved Cooling System Large Storage Unit Superbattery Matter Compressor Gravity Neutralizer Enhanced Optical Array Spectral Analyzer Advanced Sensor Array Seismic Detector Improved Target Analyzer Precision Energy Filter Improved Particle Charger Advanced Transmission Jammer Medium Reflective Plating Thermal Barrier Force Field Advanced Force Field Advanced Remote Shield Ghost Barrier [Rating: 138] Favorites ----------- Power Constructs Engine Light Angular Momentum Engine Reactor Constructs Propulsion Constructs Treads Constructs Leg Titanium Leg Wheel Wheel Utility Armored Scrap Engine Device Armored Scrap Engine Storage Large Storage Unit Processor Advanced Signal Interpreter Hackware Hacking Suite Protection Hardened Medium Armor Plating Weapon Constructs Energy Gun Constructs Energy Cannon Constructs Ballistic Gun Constructs Launcher Grenade Launcher Impact Weapon Heavy Flail Piercing Weapon Force Lance Build | -11 -10 -10 -10 -9 -8 -8 -8 -6 -6 -6 -6 -5 -5 -5 -5 -4 -4 -4 -4 ------- Run | Jun Mat Min Exi Min Mat Sto Rec Fac Was Fac Ext Fac Upp Upp War Pro Fac Was Fac Slots Evolved 12 | . . . . . 4 . . 4 . . . 2 . . . . 2 . . Power 2 | . . . . . . . . 1 . . . . . . . . 1 . . Propulsion 3 | . . . . . 2 . . . . . . 1 . . . . . . . Utility 4 | . . . . . 2 . . 2 . . . . . . . . . . . Weapon 3 | . . . . . . . . 1 . . . 1 . . . . 1 . . Parts Attached 158 | 6 4 7 8 2 12 5 3 22 1 12 7 4 2 13 4 1 26 1 18 Power 4 | 1 . 1 . 1 1 . . . . . . . . . . . . . . Engine 4 | 1 . 1 . 1 1 . . . . . . . . . . . . . . Core . | . . . . . . . . . . . . . . . . . . . . Reactor . | . . . . . . . . . . . . . . . . . . . . Propulsion 15 | 2 1 2 . 1 5 4 . . . . . . . . . . . . . Treads 4 | . . . . . . 4 . . . . . . . . . . . . . Leg 2 | . . 2 . . . . . . . . . . . . . . . . . Wheel 9 | 2 1 . . 1 5 . . . . . . . . . . . . . . Hover . | . . . . . . . . . . . . . . . . . . . . Flight . | . . . . . . . . . . . . . . . . . . . . Utility 112 | 1 1 2 3 . 3 . 1 18 . 12 7 4 2 13 4 1 21 1 18 Device 92 | . 1 1 2 . . . 1 12 . 11 6 3 2 13 3 1 20 1 15 Storage 5 | 1 . 1 1 . . . . 1 . . . . . . 1 . . . . Processor 4 | . . . . . . . . 2 . . . 1 . . . . . . 1 Hackware 3 | . . . . . . . . 2 . 1 . . . . . . . . . Protection 8 | . . . . . 3 . . 1 . . 1 . . . . . 1 . 2 Artifact . | . . . . . . . . . . . . . . . . . . . . Weapon 27 | 2 2 2 5 . 3 1 2 4 1 . . . . . . . 5 . . Energy Gun 2 | 2 . . . . . . . . . . . . . . . . . . . Energy Cannon 7 | . . 1 5 . 1 . . . . . . . . . . . . . . Ballistic Gun 4 | . 2 . . . . 1 . . . . . . . . . . 1 . . Ballistic Cannon . | . . . . . . . . . . . . . . . . . . . . Launcher 9 | . . 1 . . 2 . . 2 1 . . . . . . . 3 . . Special Weapon . | . . . . . . . . . . . . . . . . . . . . Impact Weapon 4 | . . . . . . . 2 2 . . . . . . . . . . . Slashing Weapon . | . . . . . . . . . . . . . . . . . . . . Piercing Weapon 1 | . . . . . . . . . . . . . . . . . 1 . . Special Melee Weapon . | . . . . . . . . . . . . . . . . . . . . Unidentified Prototypes 12 | . . . 3 . . 1 . . 1 . . 1 . 1 3 . 1 1 . Parts Lost 33 | . 3 1 1 . 4 1 . 7 1 . . . . . 1 . 1 . 13 Power 7 | . . 1 1 . 1 1 . . . . . . . . . . . . 3 Propulsion 2 | . 1 . . . . . . 1 . . . . . . . . . . . Utility 13 | . . . . . 1 . . 4 1 . . . . . 1 . . . 6 Weapon 11 | . 2 . . . 2 . . 2 . . . . . . . . 1 . 4 Highest Loss Streak 12 | . 3 1 1 . 4 1 . 2 1 . . . . . 1 . 1 . 12 To Critical Strikes 2 | . . . . . . . . . . . . . . . . . . . 2 Average Slot Usage (%) 61 | . 88 99 92 71 74 96 79 59 51 53 53 51 52 51 51 52 51 59 57 Engine 2 | . 14 13 12 8 7 6 . 3 6 6 2 . . . . . . . . Core 2 | . . . . . . . . . . . 3 5 5 5 5 5 . 2 1 Treads 4 | . . . . . . 27 36 6 . 1 . . . . . . . . 1 Leg 2 | . . 8 28 10 . . . 1 6 4 2 . . 2 5 5 1 . 1 Wheel 2 | . 27 19 . 8 20 8 . . . . . . . . . . . . . Hover 2 | . . . . . . . . 1 . . 3 4 5 2 . . 3 5 2 Device 13 | . 5 14 12 14 9 9 9 14 13 17 17 11 11 14 16 17 14 10 14 Storage 6 | . 14 14 14 14 9 9 9 6 6 6 6 5 5 5 5 5 5 5 5 Processor 3 | . . . . . . . . 4 6 6 1 4 5 5 5 5 5 5 4 Protection 3 | . . . . . 10 18 9 . . . 4 5 5 1 . . . 5 . Energy Gun 1 | . 9 . . . . . . . . . . . . . . . . 7 6 Energy Cannon 5 | . . 4 17 14 9 6 8 4 . . 5 4 5 5 5 5 7 9 6 Ballistic Gun 1 | . 16 9 . . . 2 . 1 . . . . . 2 5 5 3 . 3 Ballistic Cannon 1 | . . . . . . . . 2 6 7 . 5 5 2 . . . . . Launcher 1 | . . 13 5 . 7 9 . . 1 . . . . . . . 2 . . Impact Weapon 1 | . . . . . . . 8 5 2 . . . . . . . . . . Naked Turns . | . . . . . . . . . . . . . . . . . . . . Heaviest Build 129 | 12 12 29 42 20 45 45 33 65 69 72 81 81 84 84 103 102 119 129 109 Greatest Support 138 | 32 32 32 32 32 52 80 80 80 40 75 115 115 90 120 120 120 132 110 138 Greatest Overweight (x) 2 | . . . 1 1 2 2 . 1 1 1 1 1 . . . . 1 2 2 Average Overweight (x) . | . . . . . . . . . 1 . . . . . . . . . . Largest Inventory Capacity 20 | 8 8 10 10 10 10 10 10 15 15 15 15 15 15 15 20 20 20 20 20 Average Capacity 14 | 7 8 9 10 10 10 10 10 13 15 15 15 15 15 15 17 20 20 20 20 Most Carried 20 | . 5 8 10 10 10 10 10 15 15 15 15 15 14 15 19 18 20 20 20 Average Carried 13 | . 1 6 9 9 9 9 7 12 14 14 14 14 13 14 16 18 19 19 19 Final Capacity 20 | 8 8 10 10 10 10 10 10 15 15 15 15 15 15 15 20 20 20 20 20 Final Carried 20 | . 5 8 10 10 10 10 10 14 15 15 15 15 14 14 19 18 19 20 17 Scrap Engine Consumption 177 | . . . . . . . 13 49 2 27 18 7 2 4 10 . 10 14 21 Constructs Created 10 | . . . . . . . 1 4 . 1 . 1 . . . . . 3 . Constructs Modified 68 | . . . . . . . 1 16 2 11 6 7 . 3 . . 7 4 11 Class Distribution -------------------- 68% | Construct 16% | Mutant 8% | Commander-Mutant Dominant Class ---------------- Mutant | -10/Materials Mutant | -10/Mines Mutant | -10/Exiles Mutant | -9/Mines Mutant | -8/Materials Mutant | -8/Storage Commander-Mutant | -8/Recycling Construct | -6/Factory Construct | -6/Waste Construct | -6/Factory Construct | -6/Extension Construct | -5/Factory Construct | -5/Upper Caves Construct | -5/Upper Caves Construct | -5/Warlord Construct | -4/Proximity Caves Construct | -4/Factory Construct | -4/Waste Construct | -4/Factory Resources | -11 -10 -10 -10 -9 -8 -8 -8 -6 -6 -6 -6 -5 -5 -5 -5 -4 -4 -4 -4 ----------- Run | Jun Mat Min Exi Min Mat Sto Rec Fac Was Fac Ext Fac Upp Upp War Pro Fac Was Fac Matter Collected 5018 | 132 192 548 . 89 350 86 121 620 . 302 180 . 324 777 250 16 580 131 320 Remotely . | . . . . . . . . . . . . . . . . . . . . Salvage Created 8659 | . 194 199 43 . 685 324 171 1357 387 599 1903 . 132 924 . . 805 301 635 Parts 335 | . 12 16 1 . 38 18 1 49 . 31 63 . 8 32 . . 46 . 20 Haulers Intercepted 7 | . . . . . . 1 . 3 . . . . . 1 . . 1 . 1 Recyclers Shooed 4 | . . . . . . . . 1 . 1 . . . . . . 1 . 1 Parts Field Recycled . | . . . . . . . . . . . . . . . . . . . . Retrieved Matter . | . . . . . . . . . . . . . . . . . . . . Parts Self-Destructed 35 | . . . . . . . . . . . . . 2 32 . 1 . . . Prevented . | . . . . . . . . . . . . . . . . . . . . Kills | -11 -10 -10 -10 -9 -8 -8 -8 -6 -6 -6 -6 -5 -5 -5 -5 -4 -4 -4 -4 ------- Run | Jun Mat Min Exi Min Mat Sto Rec Fac Was Fac Ext Fac Upp Upp War Pro Fac Was Fac Combat Hostiles Destroyed 159 | . 6 8 1 . 19 7 4 19 2 13 30 . 4 19 . . 16 1 10 Melee 6 | . . . . . . . 2 3 . . . . . . . . 1 . . Guns 13 | . 4 . . . . 1 . 1 . . . . . . . . . . 7 Cannons 90 | . . . . . 4 1 1 8 . 13 29 . 4 18 . . 9 . 3 AOE 43 | . 2 8 1 . 15 5 . 5 2 . . . . . . . 5 . . Classes Destroyed 23 | . 3 1 1 . 3 1 1 3 1 3 3 . 1 . . . 2 . . Worker 7 | . 1 . . . . . . 3 . . . . . . . . 1 . 2 Builder 8 | . . 1 . . 4 1 . . . . . . . . . . 1 . 1 Hauler 7 | . . . . . . 1 . 3 . . . . . 1 . . 1 . 1 Recycler 8 | . . . . . 1 1 . 1 . 1 2 . 1 . . . . . 1 Mechanic 1 | . . . . . . . . . . 1 . . . . . . . . . Operator 1 | . . . . . . . . . . . . . . . . . 1 . . Drone 1 | . . . . . . . . . . 1 . . . . . . . . . Watcher 5 | . . . . . 1 . . 2 . 1 1 . . . . . . . . Swarmer 37 | . 3 4 . . 3 . . . . 8 1 . 3 8 . . 5 . 2 Cutter 1 | . . . . . . . . . . . . . . . . . 1 . . Grunt 64 | . 3 4 . . 12 5 2 12 . . 17 . . 6 . . 1 . 2 Brawler 6 | . . . . . . . . . . . 3 . . 2 . . . . 1 Duelist 2 | . . . . . . . . 1 . . . . . 1 . . . . . Sentry 16 | . . . . . 4 2 1 . . 1 4 . . 2 . . 1 . 1 Demolisher 1 | . . . . . . . . . . . 1 . . . . . . . . Specialist 2 | . . . . . . . . 2 . . . . . . . . . . . Hunter 8 | . . . . . . . . 1 . 2 1 . . . . . 4 . . Programmer 13 | . . . . . . . 1 3 . 1 1 . . . . . 4 . 3 Heavy 1 | . . . . . . . . . . 1 . . . . . . . . . Behemoth 2 | . . . . . . . . . . . 2 . . . . . . . . Compactor 3 | . . . . . . . . . 2 . . . . . . . . 1 . Master Thief 1 | . . . . . . . . . . . . . 1 . . . . . . Assembled 1 | . . . 1 . . . . . . . . . . . . . . . . Thug 1 | . . 1 . . . . . . . . . . . . . . . . . Savage 2 | . . . . . . . . . . . 1 . . . . . . . 1 Best Kill Streak 22 | . 7 3 1 . 22 4 2 5 2 9 4 . 3 5 . . 8 1 4 Combat Bots Only 16 | . 5 3 1 . 16 3 2 5 2 7 4 . 3 5 . . 6 1 2 Max Kills in Single Turn 4 | . 2 2 1 . 3 3 1 3 1 1 1 . 1 1 . . 4 1 2 Gunslinging . | . . . . . . . . . . . . . . . . . . . . Exploded 3 | . 2 2 1 . 3 3 . 1 1 . . . . . . . 2 . . Melee 1 | . . . . . . . 1 1 . . . . . . . . 1 . . Uniques/NPCs Destroyed 1 | . . . 1 . . . . . . . . . . . . . . . . EX-DEC (-10/Exiles) Combat | -11 -10 -10 -10 -9 -8 -8 -8 -6 -6 -6 -6 -5 -5 -5 -5 -4 -4 -4 -4 -------- Run | Jun Mat Min Exi Min Mat Sto Rec Fac Was Fac Ext Fac Upp Upp War Pro Fac Was Fac Damage Taken 12758 | . 288 220 382 . 723 408 159 2319 56 1891 997 . 111 360 220 . 1445 20 3159 Core 1535 | . 43 70 110 . 158 28 12 240 20 89 72 . 24 13 42 . 93 . 521 Absorbed by Shields 3215 | . . . . . . . 33 286 7 158 812 . 90 344 70 . 967 21 427 Regen/Repaired (Parts) 4191 | . . . . . . . . 485 177 1060 690 446 . 164 63 . 241 575 290 Core Remaining (%) 63 | 100 . . . 10 . . 64 . . . 50 . . . . 92 . . . Volleys Fired 621 | . 18 13 4 . 39 24 13 71 12 69 140 4 30 50 26 1 42 2 63 Largest 4 | . 2 1 1 . 2 1 1 2 2 1 1 1 1 2 1 1 1 4 4 Hottest 261 | . 80 30 250 . 108 60 42 107 119 94 94 94 94 135 94 94 169 247 261 Shots Fired 738 | . 24 13 4 . 40 24 13 102 20 69 139 4 30 53 26 1 42 8 126 Gun 152 | . 24 . . . . 8 . 15 . . . . . . . . . 4 101 Cannon 526 | . . . 4 . 21 9 13 79 10 69 139 4 30 53 26 1 39 4 25 Launcher 60 | . . 13 . . 19 7 . 8 10 . . . . . . . 3 . . Special . | . . . . . . . . . . . . . . . . . . . . Kinetic 156 | . 13 . . . . 8 . 40 10 21 . . 8 3 . . . 2 51 Thermal 456 | . . . 4 . 21 9 13 54 . 48 139 4 22 50 26 1 5 4 56 Explosive 60 | . . 13 . . 19 7 . 8 10 . . . . . . . 3 . . Electromagnetic 18 | . 11 . . . . . . . . . . . . . . . . . 7 Entropic 48 | . . . . . . . . . . . . . . . . . 34 2 12 Robot Hit Streak 16 | . 7 2 2 . 9 7 3 7 11 12 16 . 2 12 . . 12 7 7 Robot Miss Streak 7 | . 1 4 5 . 3 3 3 5 2 6 3 1 4 3 . 1 4 1 7 Penetration Max 1 | . . . . . . . . . . . . . . . . . . . 1 Secondary Targets 2 | . 1 . . . . . . . . . . . . . . . . . 1 Max Gunslinging Chain 1 | . 1 . . . . . . . . . . . . . . . . . 1 Shots Hit Robots 440 | . 18 4 3 . 24 19 12 78 14 31 90 . 9 36 . . 31 7 64 Core Hits 294 | . 9 16 8 . 48 23 2 37 5 17 30 . 7 18 . . 30 . 44 Critical Kills 5 | . . . . . . . . 1 . . . . 1 . . . . . 3 Critical Parts Destroyed 21 | . . . . . . . 2 4 . . . . 3 . . . 6 . 6 Critical Strikes 34 | . . . . . . . 2 6 . . . . 4 . . . 8 2 12 Burn 3 | . . . . . . . . . . . . . . . . . 2 . 1 Destroy 23 | . . . . . . . . . . . . . 4 . . . 6 2 11 Blast 1 | . . . . . . . . 1 . . . . . . . . . . . Smash 7 | . . . . . . . 2 5 . . . . . . . . . . . Melee Attacks 63 | . . . . . . . 7 34 . . . . . . . . 8 . 14 Impact 41 | . . . . . . . 7 34 . . . . . . . . . . . Slashing . | . . . . . . . . . . . . . . . . . . . . Piercing 22 | . . . . . . . . . . . . . . . . . 8 . 14 Sneak Attacks 4 | . . . . . . . 1 3 . . . . . . . . . . . Combat Hostiles 1 | . . . . . . . 1 . . . . . . . . . . . . Follow-up Attacks . | . . . . . . . . . . . . . . . . . . . . Damage Inflicted 33029 | . 281 606 312 . 2077 964 462 4262 2841 2782 7556 . 390 3453 . . 3899 229 2915 Guns 2751 | . 221 . . . . 113 . 269 . . . . . . . . . 103 2045 Cannons 21232 | . . . 117 . 346 140 171 1764 719 2782 7556 . 390 3453 . . 3165 126 503 Explosions 7496 | . 60 606 195 . 1731 711 . 1049 2122 . . . . . . . 655 . 367 Melee 1550 | . . . . . . . 291 1180 . . . . . . . . 79 . . Ramming . | . . . . . . . . . . . . . . . . . . . . Kinetic 3723 | . 128 . . . . 113 . 1133 719 317 . . 110 44 . . . 45 1114 Thermal 17393 | . 60 . 312 . 346 140 171 900 . 2465 7556 . 280 3409 . . 550 119 1085 Explosive 7003 | . . 606 . . 1731 711 . 1049 2122 . . . . . . . 417 . 367 Electromagnetic 431 | . 93 . . . . . . . . . . . . . . . 238 . 100 Impact 1471 | . . . . . . . 291 1180 . . . . . . . . . . . Slashing . | . . . . . . . . . . . . . . . . . . . . Piercing 79 | . . . . . . . . . . . . . . . . . 79 . . Entropic 2929 | . . . . . . . . . . . . . . . . . 2615 65 249 Highest Corruption 13 | . . . 5 5 . . 2 2 2 4 4 . . . 1 1 1 1 13 Average Corruption 2 | . . . 5 5 . . 1 1 2 2 4 . . . 1 1 1 1 1 Corruption Purged . | . . . . . . . . . . . . . . . . . . . . Corruption Blocked . | . . . . . . . . . . . . . . . . . . . . Effects 89 | . . . 1 4 . . 7 3 3 20 34 . . . . . 3 3 11 Message Errors 25 | . . . . 1 . . 1 2 . 7 9 . . . . . 1 1 3 Matter Fused 24 | . . . 1 . . . 2 1 . 4 8 . . . . . 2 1 5 Heat Flow Errors 15 | . . . . 3 . . . . 1 3 7 . . . . . . 1 . Energy Discharges 12 | . . . . . . . 3 . . 4 5 . . . . . . . . Parts Rejected 1 | . . . . . . . . . 1 . . . . . . . . . . Data Loss (minor) 5 | . . . . . . . 1 . . 1 2 . . . . . . . 1 Data Loss (major) 4 | . . . . . . . . . . 1 2 . . . . . . . 1 Alerts 1 | . . . . . . . . . 1 . . . . . . . . . . Weapon Failures 2 | . . . . . . . . . . . 1 . . . . . . . 1 Overload Shots . | . . . . . . . . . . . . . . . . . . . . Overflow Damage 3154 | . . 8 21 . 1 . 186 557 . 406 598 . 144 222 . . 975 . 36 Projectiles 2499 | . . . . . . . . 161 . 406 598 . 144 222 . . 968 . . Explosions 73 | . . 8 21 . 1 . . . . . . . . . . . 7 . 36 Melee 582 | . . . . . . . 186 396 . . . . . . . . . . . Knockbacks 30 | . . . . . . . . 20 . 5 . . 2 3 . . . . . Impact 5 | . . . . . . . . 5 . . . . . . . . . . . Kinetic 22 | . . . . . . . . 13 . 5 . . 2 2 . . . . . Secondary 3 | . . . . . . . . 2 . . . . . 1 . . . . . Self-Inflicted Damage 365 | . . 132 3 . 43 11 . 118 27 . . . . . . . 31 . . Shots 15 | . . 7 1 . 1 2 . 2 1 . . . . . . . 1 . . Rammed . | . . . . . . . . . . . . . . . . . . . . Targets Rammed . | . . . . . . . . . . . . . . . . . . . . Kicked . | . . . . . . . . . . . . . . . . . . . . Crushed . | . . . . . . . . . . . . . . . . . . . . Highest Temperature 679 | . 54 10 247 270 209 333 39 397 165 222 239 46 276 372 262 39 679 346 384 Average Temperature 102 | . 31 4 112 109 91 143 20 99 73 70 63 24 84 130 114 24 162 161 110 Received Heat Transfer 2631 | . 96 21 . . 279 171 48 777 . 106 234 . . 16 6 . 150 . 727 Effects 15 | . . . . . . 2 . . . 1 . . 2 2 1 . 4 1 2 Shutdowns 4 | . . . . . . . . . . . . . . . . . 3 . 1 Energy Bleed 3 | . . . . . . . . . . . . . . 1 1 . . 1 . Interference 5 | . . . . . . 2 . . . 1 . . 2 . . . . . . Matter Decay 1 | . . . . . . . . . . . . . . . . . . . 1 Short Circuit 1 | . . . . . . . . . . . . . . . . . 1 . . Damage (minor) 1 | . . . . . . . . . . . . . . 1 . . . . . Siege Activations . | . . . . . . . . . . . . . . . . . . . . Robots Corrupted 1 | . . . . . . . . . . . . . . . . . 1 . . Combat Hostiles 1 | . . . . . . . . . . . . . . . . . 1 . . Parts Fried 5 | . . . . . . . . 3 . . . . . . . . 2 . . Impact Corruptions 25 | . . . . . . . 9 16 . . . . . . . . . . . Robots Melted 4 | . . . . . . . 1 . . . 1 . . 1 . . . 1 . Combat Hostiles 4 | . . . . . . . 1 . . . 1 . . 1 . . . 1 . Parts Melted 29 | . . . 13 . 1 1 . 1 . 2 3 . . 3 . . . 2 3 Heat Transferred 12976 | . 100 . 1514 . 555 222 296 1260 . 1450 4289 . 111 1332 . . 333 150 1364 Parts Sabotaged . | . . . . . . . . . . . . . . . . . . . . Parts Stolen 2 | . . . . . . . . . . . . . 2 . . . . . . Parts Stripped . | . . . . . . . . . . . . . . . . . . . . Power Chain Reactions 3 | . 1 . . . . . . . . . . . . . . . 2 . . Missiles Intercepted . | . . . . . . . . . . . . . . . . . . . . Alert | -11 -10 -10 -10 -9 -8 -8 -8 -6 -6 -6 -6 -5 -5 -5 -5 -4 -4 -4 -4 ------- Run | Jun Mat Min Exi Min Mat Sto Rec Fac Was Fac Ext Fac Upp Upp War Pro Fac Was Fac Peak Influence 955 | . 159 391 . 5 593 483 207 410 181 307 573 262 . . . . 955 416 822 Initial 450 | . . 61 . . 1 250 187 91 143 119 91 262 . . . . 450 297 137 Average 286 | . 102 268 . 1 359 378 88 164 161 157 400 108 . . . . 687 339 529 Maximum Alert Level 3 | . . 1 . . 2 2 1 2 . 1 2 1 . . . . 3 2 3 Low Security (%) 45 | 100 100 45 . 100 29 . 74 60 100 80 10 98 . . . . . 18 8 Level 1 26 | . . 54 . . 5 55 25 36 . 19 40 1 . . . . . 79 2 Level 2 23 | . . . . . 65 44 . 2 . . 49 . . . . . 46 1 71 Level 3 5 | . . . . . . . . . . . . . . . . . 53 . 17 Level 4 . | . . . . . . . . . . . . . . . . . . . . Level 5 . | . . . . . . . . . . . . . . . . . . . . High Security . | . . . . . . . . . . . . . . . . . . . . Max Security . | . . . . . . . . . . . . . . . . . . . . Squads Dispatched 35 | . 1 . . . 2 3 . 6 . 5 4 . . 1 . . 3 . 10 Investigation 4 | . . . . . . 1 . . . . 1 . . . . . . . 2 Extermination 7 | . . . . . . . . 2 . 2 . . . . . . . . 3 Reinforcement 20 | . 1 . . . 2 2 . 4 . 3 2 . . . . . 3 . 3 Assault 4 | . . . . . . . . . . . 1 . . 1 . . . . 2 Garrison . | . . . . . . . . . . . . . . . . . . . . Intercept . | . . . . . . . . . . . . . . . . . . . . Searches Triggered 1 | . . . . . . . . . . . . . . . . . 1 . . Construction Impeded 4 | . . . . . 1 1 . . . . . . . . . . . . 2 Haulers Reinforced 3 | . . . . . . . . 2 . 1 . . . . . . . . . Active Scanning Responses . | . . . . . . . . . . . . . . . . . . . . Cargo Convoy Interrupts . | . . . . . . . . . . . . . . . . . . . . Stealth | -11 -10 -10 -10 -9 -8 -8 -8 -6 -6 -6 -6 -5 -5 -5 -5 -4 -4 -4 -4 --------- Run | Jun Mat Min Exi Min Mat Sto Rec Fac Was Fac Ext Fac Upp Upp War Pro Fac Was Fac Distress Signals 12 | . . . . . 2 2 . 1 . . 3 . . . . . . . 4 Communications Jammed 19 | . . . . . . . . . . 2 . . . 1 . . 16 . . Distress Signals 17 | . . . . . . . . . . . . . . 1 . . 16 . . Times Spotted 293 | . 7 9 8 . 22 11 6 44 5 24 40 1 8 25 3 1 23 7 49 Peak Tracking Total 17 | . 3 3 10 . 15 3 1 7 5 7 7 1 4 6 3 1 5 3 17 Tactical Retreats 16 | . . . . . . . . 6 . 1 2 . 1 . . . 2 1 3 Traps | -11 -10 -10 -10 -9 -8 -8 -8 -6 -6 -6 -6 -5 -5 -5 -5 -4 -4 -4 -4 ------- Run | Jun Mat Min Exi Min Mat Sto Rec Fac Was Fac Ext Fac Upp Upp War Pro Fac Was Fac Traps Triggered 13 | . . . . . . . . 3 . 1 2 . . . . . 4 . 3 Indirectly 1 | . . . . . . . . . . . . . . . . . 1 . . Trap Hack Attempts . | . . . . . . . . . . . . . . . . . . . . Triggered . | . . . . . . . . . . . . . . . . . . . . Disarmed . | . . . . . . . . . . . . . . . . . . . . Reprogrammed . | . . . . . . . . . . . . . . . . . . . . Reused . | . . . . . . . . . . . . . . . . . . . . Traps Extracted . | . . . . . . . . . . . . . . . . . . . . Installed . | . . . . . . . . . . . . . . . . . . . . Triggered 7 | . . . . . . . . . . . . . . . 5 1 . . 1 Machines | -11 -10 -10 -10 -9 -8 -8 -8 -6 -6 -6 -6 -5 -5 -5 -5 -4 -4 -4 -4 ---------- Run | Jun Mat Min Exi Min Mat Sto Rec Fac Was Fac Ext Fac Upp Upp War Pro Fac Was Fac Machines Disabled 32 | . . 1 5 . . 1 . 1 . . 5 . . . . . 9 . 10 Max in Single Turn 8 | . . 1 4 . . 1 . 1 . . 1 . . . . . 8 . 2 Energy Cycler 1 | . . . . . . . . . . . 1 . . . . . . . . Machines Repaired . | . . . . . . . . . . . . . . . . . . . . Machines Sabotaged . | . . . . . . . . . . . . . . . . . . . . Overloaded Fab Kills . | . . . . . . . . . . . . . . . . . . . . Hacking | -11 -10 -10 -10 -9 -8 -8 -8 -6 -6 -6 -6 -5 -5 -5 -5 -4 -4 -4 -4 --------- Run | Jun Mat Min Exi Min Mat Sto Rec Fac Was Fac Ext Fac Upp Upp War Pro Fac Was Fac Machines Accessed 73 | . 4 1 . 1 4 2 5 11 . 5 6 5 2 . 15 . 7 . 5 Terminals 42 | . 4 . . 1 3 2 5 6 . 4 6 3 . . . . 4 . 4 Fabricators 10 | . . . . . . . . 3 . 1 . 2 . . . . 3 . 1 Repair Stations 1 | . . . . . . . . 1 . . . . . . . . . . . Recycling Units . | . . . . . . . . . . . . . . . . . . . . Scanalyzers 2 | . . . . . 1 . . 1 . . . . . . . . . . . Garrison Access . | . . . . . . . . . . . . . . . . . . . . Total Hacks 169 | . 13 1 . 3 11 3 18 23 . 12 9 14 2 . 33 . 9 . 18 Successful 85 | . 5 1 . 1 6 2 5 10 . 2 3 7 2 . 33 . 3 . 5 Failed 83 | . 7 . . 2 5 1 13 13 . 10 6 7 . . . . 6 . 13 Catastrophic 20 | . . . . 1 1 . 1 . . 2 3 3 . . . . 4 . 5 Database Lockouts 1 | . 1 . . . . . . . . . . . . . . . . . . Manual 76 | . 10 . 1 1 3 3 10 10 . 10 3 5 . . . . 6 . 14 Terminals 106 | . 13 . . 3 8 3 18 13 . 10 9 9 . . . . 4 . 16 Fabricators 22 | . . . . . . . . 8 . 2 . 5 . . . . 5 . 2 Repair Stations 1 | . . . . . . . . 1 . . . . . . . . . . . Recycling Units . | . . . . . . . . . . . . . . . . . . . . Scanalyzers 4 | . . . . . 3 . . 1 . . . . . . . . . . . Garrison Access . | . . . . . . . . . . . . . . . . . . . . Terminal Hacks 60 | . 1 1 . 1 2 2 5 3 . 1 1 4 2 . 33 . 1 . 3 Record 28 | . . . . . . . . . . . . . . . 28 . . . . Prototype ID Bank 10 | . 1 . . . 1 . 4 . . . . . . . 4 . . . . Open Door 6 | . . 1 . . . 1 . . . . 1 . 2 . 1 . . . . Open DSF 1 | . . . . . . . . 1 . . . . . . . . . . . Branch Access Points 5 | . . . . . 1 . . 1 . 1 . 1 . . . . . . 1 Alert Level 3 | . . . . . . . 1 . . . . 1 . . . . . . 1 Unreport Threat 3 | . . . . . . . . 1 . . . 1 . . . . . . 1 Locate Traps 1 | . . . . . . . . . . . . . . . . . 1 . . Zone Layout 3 | . . . . 1 . 1 . . . . . 1 . . . . . . . Fabricator Hacks 6 | . . . . . . . . 3 . . . 2 . . . . 1 . . Build 6 | . . . . . . . . 3 . . . 2 . . . . 1 . . Repair Station Hacks 1 | . . . . . . . . 1 . . . . . . . . . . . Refit 1 | . . . . . . . . 1 . . . . . . . . . . . Recycling Unit Hacks . | . . . . . . . . . . . . . . . . . . . . Scanalyzer 2 | . . . . . 2 . . . . . . . . . . . . . . Insert Component 1 | . . . . . 1 . . . . . . . . . . . . . . Analyze 1 | . . . . . 1 . . . . . . . . . . . . . . Garrison Access Hacks . | . . . . . . . . . . . . . . . . . . . . Unauthorized Hacks 16 | . 4 . . . 2 . . 3 . 1 2 1 . . . . 1 . 2 Terminals 14 | . 4 . . . 2 . . 2 . 1 2 1 . . . . . . 2 Assimilate 1 | . . . . . . . . . . 1 . . . . . . . . . Botnet 12 | . 4 . . . 2 . . 2 . . 2 1 . . . . . . 1 Operators 1 | . . . . . . . . . . . . . . . . . . . 1 Fabricators 2 | . . . . . . . . 1 . . . . . . . . 1 . . Prioritize 1 | . . . . . . . . 1 . . . . . . . . . . . Fabnet 1 | . . . . . . . . . . . . . . . . . 1 . . Repair Stations . | . . . . . . . . . . . . . . . . . . . . Recycling Units . | . . . . . . . . . . . . . . . . . . . . Scanalyzers . | . . . . . . . . . . . . . . . . . . . . Garrison Access . | . . . . . . . . . . . . . . . . . . . . Data Cores Recovered 1 | . . . . . . . . . . . . . . . . . . . 1 Used . | . . . . . . . . . . . . . . . . . . . . Hacking Detections 52 | . 4 . . 1 4 2 5 9 . 5 5 5 . . . . 7 . 5 Full Trace Events 4 | . . . . . . 1 1 . . . 1 . . . . . . . 1 Feedback Events . | . . . . . . . . . . . . . . . . . . . . Feedback Blocked . | . . . . . . . . . . . . . . . . . . . . Robot Schematics Acquired . | . . . . . . . . . . . . . . . . . . . . Robots Built 3 | . . . . . . . . . . . . 1 . . . . 2 . . Authchips . | . . . . . . . . . . . . . . . . . . . . Time 227 | . . . . . . . . . . . . 40 . . . . 187 . . Total Robot Build Rating 15 | . . . . . . . . . . . . 1 . . . . 14 . . Part Schematics Acquired 1 | . . . . . 1 . . . . . . . . . . . . . . Parts Built 5 | . . . . . . . . 3 . . . 2 . . . . . . . Authchips . | . . . . . . . . . . . . . . . . . . . . Time 275 | . . . . . . . . 211 . . . 64 . . . . . . . Total Part Build Rating 35 | . . . . . . . . 19 . . . 16 . . . . . . . Parts Repaired . | . . . . . . . . . . . . . . . . . . . . Time . | . . . . . . . . . . . . . . . . . . . . Parts Recycled . | . . . . . . . . . . . . . . . . . . . . Recycled Matter . | . . . . . . . . . . . . . . . . . . . . Retrieved Matter . | . . . . . . . . . . . . . . . . . . . . Retrieved Components . | . . . . . . . . . . . . . . . . . . . . Parts Scanalyzed 1 | . . . . . 1 . . . . . . . . . . . . . . Part Schematics Acquired 1 | . . . . . 1 . . . . . . . . . . . . . . Parts Damaged . | . . . . . . . . . . . . . . . . . . . . Bothacking | -11 -10 -10 -10 -9 -8 -8 -8 -6 -6 -6 -6 -5 -5 -5 -5 -4 -4 -4 -4 ------------ Run | Jun Mat Min Exi Min Mat Sto Rec Fac Was Fac Ext Fac Upp Upp War Pro Fac Was Fac Used RIF Installer . | . . . . . . . . . . . . . . . . . . . . Robots Hacked . | . . . . . . . . . . . . . . . . . . . . Non-combat . | . . . . . . . . . . . . . . . . . . . . Combat . | . . . . . . . . . . . . . . . . . . . . Robot Hacks Applied . | . . . . . . . . . . . . . . . . . . . . Relay Couplers Released . | . . . . . . . . . . . . . . . . . . . . Fabnet Peak Effective % . | . . . . . . . . . . . . . . . . . . . . Robots Rewired 21 | . . . . . . . 12 . . . 9 . . . . . . . . Allies Hacked 1 | . . . . . . . . . . . . . . . . . . . 1 Hacks Repelled . | . . . . . . . . . . . . . . . . . . . . Allies | -11 -10 -10 -10 -9 -8 -8 -8 -6 -6 -6 -6 -5 -5 -5 -5 -4 -4 -4 -4 -------- Run | Jun Mat Min Exi Min Mat Sto Rec Fac Was Fac Ext Fac Upp Upp War Pro Fac Was Fac Total Allies 49 | . . . . . . . 12 . . 1 14 1 . . . . 2 19 . Largest Group 19 | . . . . . . . 10 9 . 1 11 1 1 . . . 2 19 12 Highest-Rated Group 684 | . . . . . . . 176 166 . 26 313 8 8 . . . 112 684 478 Highest-Rated Ally 56 | . . . . . . . 34 34 . 26 39 8 8 . . . 56 50 46 Total Orders 6 | . . . . . . . . . . 6 . . . . . . . . . EXPLORE 6 | . . . . . . . . . . 6 . . . . . . . . . Ally Attacks 311 | . . . 13 . . . 15 23 . . 57 . . . . . 9 86 108 Total Damage 10987 | . . . 684 . . . 431 605 . . 1115 . . . . . 495 4733 2924 Kills 49 | . . . 5 . . . 3 3 . . 4 . . . . . 2 11 21 Allies Corrupted 1 | . . . . . . . . . . . 1 . . . . . . . . Allies Melted 2 | . . . . . . . . . . . 2 . . . . . . . . Turrets Deployed 1 | . . . 1 . . . . . . . . . . . . . . . . Intel | -11 -10 -10 -10 -9 -8 -8 -8 -6 -6 -6 -6 -5 -5 -5 -5 -4 -4 -4 -4 ------- Run | Jun Mat Min Exi Min Mat Sto Rec Fac Was Fac Ext Fac Upp Upp War Pro Fac Was Fac Robot Analysis Total . | . . . . . . . . . . . . . . . . . . . . Derelict Logs Recovered 5 | . . 1 . . . . . . . . . . 2 2 . . . . . Drone Launches 18 | . . . . . . . . . . 18 . . . . . . . . . Drone Recoveries 4 | . . . . . . . . . . 4 . . . . . . . . . Exploration | -11 -10 -10 -10 -9 -8 -8 -8 -6 -6 -6 -6 -5 -5 -5 -5 -4 -4 -4 -4 ------------- Run | Jun Mat Min Exi Min Mat Sto Rec Fac Was Fac Ext Fac Upp Upp War Pro Fac Was Fac Turns Passed 13052 | 37 247 499 365 173 352 225 1168 1537 167 1116 1731 565 1047 799 531 228 618 490 1157 Spaces Moved 9175 | 29 199 458 252 151 263 117 558 819 85 724 1077 389 766 662 682 336 617 355 636 Core 2 | 2 . . . . . . . . . . . . . . . . . . . Treads 1175 | . . . . . . 75 558 225 . 164 . . . . . . . . 153 Legs 3550 | . . 123 252 38 . . . 196 85 560 318 12 . 462 682 336 250 . 236 Wheels 997 | 27 199 335 . 113 263 42 . . . . . . . . . . . . 18 Hover 3365 | . . . . . . . . 312 . . 759 377 766 200 . . 367 355 229 Flight 86 | . . . . . . . . 86 . . . . . . . . . . . Fastest Speed 50 | 50 90 90 125 95 80 90 170 115 154 122 122 122 122 67 67 67 67 67 103 Average Speed 115 | 96 93 99 132 102 93 143 170 144 154 126 124 139 122 83 67 67 68 122 142 Slowest Speed 330 | 100 100 125 195 125 110 330 170 200 154 154 200 166 122 122 67 67 111 191 191 Overloaded Moves . | . . . . . . . . . . . . . . . . . . . . Propulsion Burnouts . | . . . . . . . . . . . . . . . . . . . . Robots Hopped . | . . . . . . . . . . . . . . . . . . . . Cave-ins Triggered 1 | . . . . . . . . . . . . . . . 1 . . . . Exploration Rate (%) 53 | 3 44 88 65 49 20 26 93 30 72 32 92 11 81 68 92 58 19 95 27 Regions Visited 19 Branch Regions 10 Pre-discovered Areas 1 | . . 1 . . . . . . . . . . . . . . . . . Known Exits Taken 8 | . . . . . 1 . . . . 1 1 1 1 1 1 1 . . . Unknown Exits Taken 7 | 1 1 1 1 1 . 1 1 . . . . . . . . . . . . Scrap Searched 7 | . . 1 . 2 . . . . . . . . 1 3 . . . . . Spaces Dug 139 | . . . . . 4 . . 15 . 19 28 3 19 9 19 . 6 . 17 Terrain Destroyed 664 | . 7 109 3 . 89 33 . 73 82 30 39 4 19 14 20 1 40 . 101 Melee 18 | . . . . . . . . 5 . . . . . . . . 1 . 12 Projectile 199 | . . . . . 5 1 . 17 . 30 39 4 19 14 20 1 9 . 40 AOE 447 | . 7 109 3 . 84 32 . 51 82 . . . . . . . 30 . 49 Terrain Rammed . | . . . . . . . . . . . . . . . . . . . . Walls Destroyed . | . . . . . . . . . . . . . . . . . . . . Machines Disabled . | . . . . . . . . . . . . . . . . . . . . Actions | -11 -10 -10 -10 -9 -8 -8 -8 -6 -6 -6 -6 -5 -5 -5 -5 -4 -4 -4 -4 --------- Run | Jun Mat Min Exi Min Mat Sto Rec Fac Was Fac Ext Fac Upp Upp War Pro Fac Was Fac Total 10835 | 34 235 489 283 169 325 154 760 1026 102 851 1333 407 849 851 730 337 746 406 748 Wait 437 | . 9 . 3 14 6 2 27 48 . 22 33 4 47 113 7 . 43 48 11 Move 9157 | 28 198 457 251 150 262 116 557 819 84 723 1076 388 765 661 680 335 617 354 636 Hop . | . . . . . . . . . . . . . . . . . . . . Pick Up 90 | . 6 6 6 1 3 1 4 15 3 9 12 2 3 5 7 . 5 . 2 Fast Attach 56 | 6 3 3 4 1 8 5 1 6 . 2 . 2 . 2 3 . 7 1 2 Attach 21 | . 1 2 4 1 2 . 2 4 . 1 . . . . . 1 1 . 2 Detach 8 | . . . 1 . . . 1 2 . 1 . 1 . 1 . . . 1 . Swap 81 | . . 2 . . 2 . . 12 1 9 7 2 2 11 1 . 18 . 14 Drop 96 | . . 6 10 2 3 6 7 15 2 9 10 4 2 6 5 . 5 . 4 Fire 621 | . 18 13 4 . 39 24 13 71 12 69 140 4 30 50 26 1 42 2 63 Melee 63 | . . . . . . . 7 34 . . . . . . . . 8 . 14 Ram . | . . . . . . . . . . . . . . . . . . . . Kick . | . . . . . . . . . . . . . . . . . . . . Crush . | . . . . . . . . . . . . . . . . . . . . Escape Stasis 7 | . . . . . . . . . . . 6 . . . 1 . . . . Rewire 192 | . . . . . . . 141 . . . 49 . . 2 . . . . . Trap . | . . . . . . . . . . . . . . . . . . . . Miscellaneous 6 | . . . . . . . . . . 6 . . . . . . . . . Route ------- -11/Junkyard -10/Materials (discovered 3 exits: [*Mat] / *Min x2) -10/Mines (discovered 3 exits: [*Mat x2] / *Exi) -10/Exiles -9/Mines -8/Materials -8/Storage -8/Recycling -6/Factory (discovered 5 exits: *Fac / *Low x2 / Ext x2) -6/Waste -6/Factory (discovered 5 exits: *Fac / Low x2 / *Ext x2) -6/Extension (discovered 3 exits: *Fac x2 / [*Cet]) -5/Factory (discovered 2 exits: *Upp x2) -5/Upper Caves -5/Upper Caves (discovered 2 exits: *Fac / *War) -5/Warlord -4/Proximity Caves -4/Factory (discovered 2 exits: Res x2) -4/Waste -4/Factory (discovered 3 exits: *Res / Upp x2) History --------- Turn | Location | Event 15 | -11/Junkyard | Discovered new exit (range 16) 38 | -11/Junkyard | Entered Materials 38 | -10/Materials | Discovered new exit (range 14) 180 | -10/Materials | Lost 3 parts (1n2w) 193 | -10/Materials | Discovered new exit (range 12) 253 | -10/Materials | Discovered new exit (range 5) 269 | -10/Materials | Central database locked down 285 | -10/Materials | Entered Mines 327 | -10/Mines | Build established: Mutant 366 | -10/Mines | Discovered new exit (range 8) 497 | -10/Mines | Deemed a non-threat by the Exiles lab entrance 497 | -10/Mines | Discovered new exit (range 5) 520 | -10/Mines | Discovered new exit (range 7) 610 | -10/Mines | Learned location of Recycling (-8) 617 | -10/Mines | Met a Derelict who couldn't figure out how to use a Trap Extractor 784 | -10/Mines | Entered Exiles 816 | -10/Exiles | Met 8R-AWN 837 | -10/Exiles | Met EX-HEX 871 | -10/Exiles | Met EX-BIN 886 | -10/Exiles | Aligned with FarCom system 887 | -10/Exiles | Given EX-Vault access code 916 | -10/Exiles | Opened EX-Vault 924 | -10/Exiles | Found Prototype Device 924 | -10/Exiles | Identified Chronowheel 924 | -10/Exiles | Activated Chronowheel 929 | -10/Exiles | Found Prototype Storage 929 | -10/Exiles | Identified Superbattery 938 | -10/Exiles | Found Prototype Energy Cannon 938 | -10/Exiles | Identified Firepult 998 | -10/Exiles | Warned to stay clear of 0b10 Research branches 1033 | -10/Exiles | Met EX-DEC 1065 | -10/Exiles | Destroyed EX-DEC 1066 | -10/Exiles | Attacked by the Exiles 1072 | -10/Exiles | Found Deploy-a-Sentry 1086 | -10/Exiles | Core integrity fell below 50% 1089 | -10/Exiles | DAS Turret deployed 1111 | -10/Exiles | Core integrity fell below 20% 1138 | -10/Exiles | Discovered new exit (range 11) 1149 | -10/Exiles | Stole two prototypes: Superbattery, Firepult 1149 | -10/Exiles | Entered Mines 1312 | -9/Mines | Discovered new exit (range 5) 1322 | -9/Mines | Entered Materials 1322 | -8/Materials | Evolved 4 slots: Propulsion x2, Utility x2 1489 | -8/Materials | Destroyed 16 combat bots 1498 | -8/Materials | Lost 4 parts (1p1u2w) 1559 | -8/Materials | Discovered new exit (range 12) 1615 | -8/Materials | Identified exit to Storage 1674 | -8/Materials | Entered Storage 1892 | -8/Storage | Used back door to open Recycling access 1892 | -8/Storage | Discovered new exit (range 5) 1899 | -8/Storage | Entered Recycling 1904 | -8/Recycling | Found Scrap Engine 2351 | -8/Recycling | Build established: Commander-Mutant 2709 | -8/Recycling | Discovered new exit (range 15) 3067 | -8/Recycling | Entered Factory 3067 | -6/Factory | Accompanied by 9 allies 3067 | -6/Factory | Evolved 4 slots: Power x1, Utility x2, Weapon x1 3122 | -6/Factory | Identified exit to DSF 3605 | -6/Factory | Fabricated Imp. Linear Gravjet (x2) 3810 | -6/Factory | Fabricated Enh. Optical Array? 3962 | -6/Factory | Build established: Construct 4271 | -6/Factory | Discovered new exit (range 14) 4300 | -6/Factory | Identified exit to Factory 4479 | -6/Factory | Spotted B-75 Beast 4526 | -6/Factory | Discovered new exit (range 7) 4533 | -6/Factory | Identified exit to Lower Caves 4569 | -6/Factory | Identified exit to Extension 4604 | -6/Factory | Sucked down chute 4604 | -6/Factory | Entered Waste 4662 | -6/Waste | Spotted C-40 Crusher 4665 | -6/Waste | Spotted C-40 Crusher 4676 | -6/Waste | Spotted C-40 Crusher 4676 | -6/Waste | Spotted C-40 Crusher 4679 | -6/Waste | Destroyed C-40 Crusher 4682 | -6/Waste | Destroyed C-40 Crusher 4688 | -6/Waste | Spotted C-40 Crusher 4702 | -6/Waste | Crushed by Compactor (1 part destroyed, 1 dropped) 4748 | -6/Waste | Discovered new exit (range 16) 4770 | -6/Waste | Identified exit to Factory 4771 | -6/Waste | Entered Factory 5389 | -6/Factory | Destroyed 7 combat bots 5689 | -6/Factory | Discovered exit to Factory (range 16) 5827 | -6/Factory | Spotted B-75 Beast 5887 | -6/Factory | Entered Extension 6053 | -6/Extension | Rescued a captive Derelict 6055 | -6/Extension | Rescued a captive Derelict 6146 | -6/Extension | Rescued a captive Derelict 6148 | -6/Extension | Rescued a captive Derelict 6172 | -6/Extension | Energy Cycler disabled 6172 | -6/Extension | Rescued a captive Derelict 6172 | -6/Extension | Rescued a captive Derelict 6172 | -6/Extension | Rescued a captive Derelict 6173 | -6/Extension | Rescued a captive Derelict 6173 | -6/Extension | Rescued a captive Derelict 6173 | -6/Extension | Rescued a captive Derelict 6173 | -6/Extension | Rescued a captive Derelict 6173 | -6/Extension | Rescued a captive Derelict 6174 | -6/Extension | Rescued a captive Derelict 6174 | -6/Extension | Rescued a captive Derelict 6175 | -6/Extension | Rescued a captive Derelict 6176 | -6/Extension | Rescued a captive Derelict 6179 | -6/Extension | Rescued a captive Derelict 6237 | -6/Extension | First assault squad dispatched 6318 | -6/Extension | Build established: Commander-Construct 6588 | -6/Extension | Spotted B-75 Beast 6671 | -6/Extension | Build established: Construct 6840 | -6/Extension | Discovered exit to Factory (range 10) 6841 | -6/Extension | Discovered new exit (range 6) 6950 | -6/Extension | Destroyed B-75 Beast 6960 | -6/Extension | Discovered exit to Factory (range 15) 6961 | -6/Extension | Spotted B-75 Beast 7033 | -6/Extension | Destroyed B-75 Beast 7042 | -6/Extension | Extracted ID and sensor layout for unrecognized location from A7's data core 7218 | -6/Extension | Disrupted transfer network 7618 | -6/Extension | Entered Factory 7618 | -5/Factory | Evolved 2 slots: Propulsion x1, Weapon x1 7626 | -5/Factory | Identified exit to Upper Caves 7710 | -5/Factory | Fabricated R-06 Scavenger? 7774 | -5/Factory | Fabricated Adv. Recalibrator (x2) 8183 | -5/Factory | Entered Upper Caves 8183 | -5/Upper Caves | Accompanied by 1 ally 8183 | -5/Upper Caves | Spotted FK-7YQ(f) 8183 | -5/Upper Caves | Spotted FV-KCW(f) 8184 | -5/Upper Caves | Encountered a Master Thief 8184 | -5/Upper Caves | Encountered a Master Thief 8184 | -5/Upper Caves | Adv. Recalibrator stolen by Master Thief 8188 | -5/Upper Caves | Adv. Transmission Jammer stolen by Master Thief 8188 | -5/Upper Caves | Destroyed FV-KCW(f) 8225 | -5/Upper Caves | Learned Factory stockpile data 8618 | -5/Upper Caves | Learned 8 Factory zone layouts 9038 | -5/Upper Caves | Discovered new exit (range 6) 9229 | -5/Upper Caves | Identified exit to Upper Caves 9230 | -5/Upper Caves | Entered another Upper Caves area 9232 | -5/Upper Caves | Attracted the attention of an 0b10 checkpoint 9285 | -5/Upper Caves | Learned 4 Factory zone layouts 9287 | -5/Upper Caves | Discovered new exit (range 7) 9298 | -5/Upper Caves | Identified exit to Warlord 9530 | -5/Upper Caves | Attracted the attention of an 0b10 outpost 9682 | -5/Upper Caves | Encountered a Warlord checkpoint 10029 | -5/Upper Caves | Entered Warlord 10121 | -5/Warlord | Learned 4 Access zone layouts 10121 | -5/Warlord | Learned 4 Command zone layouts 10122 | -5/Warlord | Learned Factory fabricator intel 10123 | -5/Warlord | Learned Research trap positions 10123 | -5/Warlord | Learned Testing trap positions 10123 | -5/Warlord | Learned Quarantine trap positions 10123 | -5/Warlord | Learned Armory emergency access door positions 10231 | -5/Warlord | Found Prototype Device 10231 | -5/Warlord | Identified Thermal Barrier 10247 | -5/Warlord | Found Prototype Hackware 10252 | -5/Warlord | Found Prototype Processor 10260 | -5/Warlord | Met Warlord 10265 | -5/Warlord | Warlord's base attacked by MAIN.C 10537 | -5/Warlord | Crushed by falling debris 10555 | -5/Warlord | Discovered new exit (range 10) 10560 | -5/Warlord | Identified exit to Proximity Caves 10560 | -5/Warlord | Entered Proximity Caves 10593 | -4/Proximity Caves | Spotter reported a threat 10671 | -4/Proximity Caves | Spotter reported a threat 10738 | -4/Proximity Caves | Spotter reported a threat 10748 | -4/Proximity Caves | Discovered new exit (range 14) 10757 | -4/Proximity Caves | Identified exit to Factory 10788 | -4/Proximity Caves | Entered Factory 10788 | -4/Factory | Evolved 2 slots: Power x1, Weapon x1 10789 | -4/Factory | Identified exit to Research 10791 | -4/Factory | Loaded intel: 6 fabricator locations 11038 | -4/Factory | Search patrols dispatched 11069 | -4/Factory | Fabricated H-77 Assassin? 11406 | -4/Factory | Sucked down chute 11406 | -4/Factory | Entered Waste 11413 | -4/Waste | Spotted C-40 Crusher 11433 | -4/Waste | Spotted C-40 Crusher 11437 | -4/Waste | Spotted C-40 Crusher 11442 | -4/Waste | Spotted C-40 Crusher 11457 | -4/Waste | Warlord forces began an assault 11463 | -4/Waste | Allies destroyed C-40 Crusher 11560 | -4/Waste | Allies destroyed C-40 Crusher 11562 | -4/Waste | Spotted C-40 Crusher 11571 | -4/Waste | Spotted C-40 Crusher 11578 | -4/Waste | Allies destroyed C-40 Crusher 11580 | -4/Waste | Allies destroyed C-40 Crusher 11586 | -4/Waste | Destroyed C-40 Crusher 11658 | -4/Waste | Found Prototype Device 11658 | -4/Waste | Identified Exp. EM Disruption Field 11813 | -4/Waste | Discovered new exit (range 10) 11893 | -4/Waste | Identified exit to Factory 11896 | -4/Waste | Entered Factory 11896 | -4/Factory | Accompanied by 12 allies 12287 | -4/Factory | Identified exit to Upper Caves 12542 | -4/Factory | Discovered exit to Research (range 16) 12711 | -4/Factory | P-70 Sage assimilated allied V8-7YA(g) 12714 | -4/Factory | P-70 Sage assimilated allied 74-SHS(b) 12914 | -4/Factory | P-70 Sage assimilated allied 8E-7KS(m) 12939 | -4/Factory | First assault squad dispatched 13044 | -4/Factory | Core integrity fell below 50% 13045 | -4/Factory | System corruption reached 10% 13053 | -4/Factory | Self-destructed Last Messages --------------- 12974_ ALERT: Suspicious activity at Fabricator F004. Dispatching Investigation squad. 12978_ Antimatter-Chain Reactor destroyed. 12978_ Antimatter-Chain Reactor core remains intact and functional. 12980_ Manufacturing Mainframe disabled. 12989_ Thermal Barrier destroyed. 12997_ System corrupted: Matter fused (-8). 12998_ Critical hit (Burn: +37). 13015_ Arm. Scrap Engine destroyed. 13015_ Scrap Engine core remains intact and functional. 13018_ Antimatter-Chain Reactor destroyed. 13018_ Scrap Engine damaged due to network destabilization (-9). 13024_ The unstable cave ceiling collapses. 13024_ P-70 Sage crushed by falling debris. 13025_ System corrupted: Matter fused (-7). 13026_ ALERT: Cargo convoy en route, clear transfer corridor. 13029_ Subcomponent Replicator disabled. 13044_ Force Lance destroyed. 13046_ Scrap Engine destroyed. 13050_ BAJCT9HS1VB=&AGGACAH Map ----- +----------------------------------------------------+ | ?????????????????????????????????????????????????? | | ?????????????????????????????????????????????????? | | ?????????????????????????????????????????????????? | | ?????????????????????????????????????????????????? | | ?????????????????????????????????????????????????? | | ?????????????????????????????????????????????????? | | ?????????????????????????????????????????????????? | | ?????????????????????????????????????????????????? | | ?????????????????????????????????????????????????? | | ?????????????????????????????????????????????????? | | ?????????????????????????????????????????????????? | | ?????????????????????????????????????????????????? | | ?????????????????????????????????????????????????? | | ?????????????????????????????????????????????????? | | ?????????????????????????????????????????????????? | | ?????????????????????????????????????????????????? | | ?????????????????????????????????????????????????? | | ?????????????????????????????????????????????????? | | ?????????????????????######??????????????????????? | | ???????????????????? #??????????????????????? | | ???????????????????? #??????????????????????? | | ???????????????????? #??????????????????????? | | ????????????????????""""" #??????????????????????? | | ???????????????????"""""" #??????????????????????? | | ??????????????????""""""" #??????????????????????? | | ????????????????# """""""@#??????????????????????? | | ????????????????# #??????????????????????? | | ????????????????#########/#??????????????????????? | | ????????????????????????#p#??????????????????????? | | ????????????????????????#p#??????????????????????? | | ????????????????????????#g#??????????????????????? | | ??????????????????#######p######?????????????????? | | ??????????????????# g g #?????????????????? | | ??????????????????# #?????????????????? | | ??????????????????# H #?????????????????? | | ??????????????????# " #?????????????????? | | ??????????????????# """"" #?????????????????? | | ??????????????????# """"" #?????????????????? | | ????????????????? + #?????????????????? | | ???????????????? # "" #?????????????????? | | ??????????????? # """"" #?????????????????? | | ????????????? ?# """"" #?????????????????? | | ?????????????? ?# #?????????????????? | | ?????????? ? ?# #?????????????????? | | ???????? # ?########"#####?????????????????? | | ?????? ??????#####?????????????????????? | | ????? ?????## ##??????????????????????? | | ????? ????## ##???????????????????????? | | ???? ???## ##????????????????????????? | | ???? #??# ###???????????????????????? | +----------------------------------------------------+ Best States ------------- Heat Dissipation 70 Coolant Potential 120 Energy Generation 88 Energy Capacity 1650 Matter Stores 300 Matter Capacity 300 Sight Range 16 Robot Scan Range 18 Terrain Scan Range 24 Terrain Scan Density 10 ECM Strength 1 Jamming Range 16 Additional Mass Support 12 Armor Coverage 450 Resistance: TH 50 Resistance: EM 75 Evasion (%) 61 Melee Accuracy 6 Recoil Reduction 4 Offensive Hacking 20 Item Schematics ----------------- Imp. Trap Extractor | -8/Materials | Scanalyzed Robot Schematics ------------------ None Fabricated ------------ Imp. Linear Gravjet | x2 | -6/Factory | Preloaded Enh. Optical Array | x1 | -6/Factory | Preloaded R-06 Scavenger | x1 | -5/Factory | Preloaded Adv. Recalibrator | x2 | -5/Factory | Preloaded H-77 Assassin | x2 | -4/Factory | Preloaded Alien Tech Used ----------------- None Achievements -------------- Below Challenges ------------ None Game ------ Seed GammaGyrokineticGreatsword Manual? 0 Play Time 03:06:03 Cumulative 397.7 hours Start 2023.03.07 @ 20:19:38 End 2023.03.08 @ 11:46:19 Sessions 3 Manual Loads 0 Difficulty Rogue Special Mode None Game No. 184 Rogue 180 Adventurer 0 Explorer 4 Win Type - Total 23 Types 7/1/2/5/1/2/3/1/1 Lore% 85 Gallery% 88 Achievement% 79 Wizard Run 0 Options --------- ASCII 0 Keyboard 0 Movement Mouse Keybinds 0 Fullscreen 1 Font 18/SmallcapsGlow Map View 76x50 Tactical HUD 1 Map Filters NONE Filters NONE Steam 1 RUN: 45463cbe-5e21-497f-8f48-cc0fc0052c54